[Event "WGM Cvijet Mediterana 2019"]
[Site "Rijeka"]
[Date "2019.03.09"]
[Round "9.4"]
[White "Tomilova, Elena"]
[Black "Hrescak, Ivana"]
[Result "1/2-1/2"]
[ECO "B53"]
[WhiteElo "2300"]
[BlackElo "2128"]
[Annotator "NA"]
[PlyCount "179"]
[EventDate "2019.03.03"]
[EventType "tourn"]
[EventCountry "CRO"]
[SourceTitle "playchess.com"]
[Source "ChessBase"]
[SourceQuality "1"]
[TimeControl "5400+30"]

1. e4 {[%emt 0:00:00]} c5 {[%emt 0:00:00]} 2. Nf3 {[%emt 0:00:00]} d6 {[%emt 0:00:00]} 3. d4 {[%emt 0:00:00]} cxd4 {[%emt 0:00:30]} 4. Qxd4 {[%emt 0:00:00]} a6 {[%emt 0:00:30]} 5. h3 {[%emt 0:00:30]} Nc6 {[%emt 0:00:00]} 6. Qe3 {[%emt 0:00:30]} g6 {[%emt 0:01:00]} 7. Be2 {[%emt 0:00:00]} Bg7 {[%emt 0:02:30]} 8. O-O {[%emt 0:00:00]} Nf6 {[%emt 0:01:30]} 9. Rd1 {[%emt 0:00:00]} Nd7 {[%emt 0:02:30]} 10. c4 {[%emt 0:02:00]} Qb6 {[%emt 0:07:30]} 11. Nc3 {[%emt 0:09:30]} Qxe3 {[%emt 0:03:30]} 12. Bxe3 {[%emt 0:00:30]} O-O {[%emt 0:00:30]} 13. Rab1 {[%emt 0:05:30]} Nc5 {[%emt 0:05:30]} 14. Nd4 {[%emt 0:00:30]} Nxd4 {[%emt 0:14:30]} 15. Bxd4 {[%emt 0:00:30]} Be6 {[%emt 0:07:30]} 16. b4 {[%emt 0:01:30]} Nd7 {[%emt 0:03:30]} 17. Nd5 $11 {[%emt 0:02:30]} Bxd5 {[%emt 0:04:30]} 18. exd5 {[%emt 0:00:30]} Bxd4 {[%emt 0:01:30]} 19. Rxd4 {[%emt 0:00:30]} b6 {[%emt 0:02:30]} 20. Re4 {[%emt 0:09:30]} Rfe8 {[%emt 0:00:30]} 21. Bd1 {[%emt 0:04:30]} Rab8 {[%emt 0:07:30]} 22. Rc1 {[%emt 0:09:30]} Kf8 {[%emt 0:02:30]} 23. Re3 {[%emt 0:05:30]} Rec8 {[%emt 0:06:30]} 24. Rec3 {[%emt 0:10:30]} Rc7 {[%emt 0:08:24]} 25. Ba4 {[%emt 0:07:30]} b5 {[%emt 0:01:53]} 26. cxb5 {[%emt 0:01:30]} Rxc3 {[%emt 0:00:05]} 27. Rxc3 {[%emt 0:00:00]} axb5 {[%emt 0:00:05]} 28. Bb3 {[%emt 0:01:00]} Rb7 {[%emt 0:00:57]} 29. f4 {[%emt 0:03:30]} h5 {[%emt 0:02:46]} 30. g3 {[%emt 0:09:53]} Nf6 {[%emt 0:00:45]} 31. Kg2 {[%emt 0:01:00]} Kg7 {[%emt 0:02:04]} 32. Kf3 {[%emt 0:00:20]} Nd7 {[%emt 0:01:02]} 33. Rc8 {[%emt 0:03:37]} Nf6 {[%emt 0:06:57]} 34. g4 {[%emt 0:02:13]} hxg4+ {[%emt 0:00:06]} 35. hxg4 {[%emt 0:00:02]} g5 {[%emt 0:01:16]} 36. fxg5 {[%emt 0:01:02]} Nd7 {[%emt 0:00:04]} 37. Kf4 {[%emt 0:01:07]} Ne5 {[%emt 0:00:05]} 38. Kf5 {[%emt 0:02:44]} Nd3 {[%emt 0:00:55]} 39. a3 {[%emt 0:01:27]} Ra7 {[%emt 0:01:17]} 40. Rc3 {[%emt 0:00:13]} Ne5 {[%emt 0:00:49]} 41. Bc2 {[%emt 0:01:50]} Rb7 {[%emt 0:01:24]} 42. Bd1 {[%emt 0:00:20]} Ra7 {[%emt 0:01:39]} 43. Be2 {[%emt 0:01:55]} Rb7 {[%emt 0:00:09]} 44. Kf4 {[%emt 0:00:20]} Nd7 {[%emt 0:00:32]} 45. Bd3 {[%emt 0:01:12]} Nb6 {[%emt 0:00:53]} 46. Ke4 {[%emt 0:00:13]} Nd7 {[%emt 0:00:35]} 47. Kd4 {[%emt 0:00:23]} Ne5 {[%emt 0:00:21]} 48. Bf5 {[%emt 0:00:18]} Ra7 {[%emt 0:00:24]} 49. Bc2 {[%emt 0:02:05]} Nxg4 {[%emt 0:00:20]} 50. a4 {[%emt 0:01:37]} bxa4 {[%emt 0:00:28]} 51. Ra3 {[%emt 0:00:19]} Ne5 {[%emt 0:00:31]} 52. Rxa4 {[%emt 0:00:25]} Rb7 {[%emt 0:00:30]} 53. Be4 {[%emt 0:00:27]} Nd7 {[%emt 0:01:16]} 54. Bd3 {[%emt 0:00:36]} Ne5 {[%emt 0:00:22]} 55. Be4 {[%emt 0:00:30]} Ng6 {[%emt 0:00:34]} 56. Bd3 {[%emt 0:00:29]} Nf4 {[%emt 0:00:43]} 57. Ba6 {[%emt 0:00:28]} Rb6 {[%emt 0:00:08]} 58. b5 {[%emt 0:00:42]} Kg6 {[%emt 0:01:00]} 59. Rc4 {[%emt 0:00:20]} Kxg5 {[%emt 0:00:14]} 60. Rc6 {[%emt 0:00:20]} Rb8 {[%emt 0:00:37]} 61. b6 {[%emt 0:00:18]} e5+ {[%emt 0:00:28]} 62. Kc4 {[%emt 0:01:58]} e4 {[%emt 0:00:44]} 63. b7 {[%emt 0:00:16]} e3 {[%emt 0:00:34]} 64. Rc8 {[%emt 0:00:05]} Rxb7 {[%emt 0:00:58]} 65. Bxb7 {[%emt 0:00:14]} e2 {[%emt 0:00:03]} 66. Re8 {[%emt 0:00:38]} Ne6 {[%emt 0:00:27]} 67. Rg8+ {[%emt 0:00:23]} Kf4 {[%emt 0:00:20]} 68. dxe6 {[%emt 0:02:30]} e1=Q {[%emt 0:00:59]} 69. exf7 {[%emt 0:00:03]} Qe2+ {[%emt 0:00:46]} 70. Kd5 {[%emt 0:00:43]} Qa2+ {[%emt 0:00:09]} 71. Kxd6 {[%emt 0:00:14]} Qxf7 {[%emt 0:00:11]} 72. Bd5 {[%emt 0:00:08]} Qf6+ {[%emt 0:00:16]} 73. Kc5 {[%emt 0:00:07]} Qc3+ {[%emt 0:00:15]} 74. Kd6 {[%emt 0:00:16]} Qa3+ {[%emt 0:00:22]} 75. Kc6 {[%emt 0:00:33]} Ke5 {[%emt 0:01:26]} 76. Re8+ {[%emt 0:00:11]} Kf6 {[%emt 0:00:25]} 77. Rg8 {[%emt 0:00:49]} Qc3+ {[%emt 0:00:27]} 78. Kd6 {[%emt 0:00:27]} Qe5+ {[%emt 0:00:30]} 79. Kc5 {[%emt 0:00:18]} Qc3+ {[%emt 0:00:23]} 80. Kd6 {[%emt 0:00:04]} Qb4+ {[%emt 0:00:07]} 81. Kc6 {[%emt 0:00:44]} Ke7 {[%emt 0:00:43]} 82. Rg7+ {[%emt 0:00:11]} Kf6 {[%emt 0:00:12]} 83. Rg8 {[%emt 0:00:05]} Qa5 {[%emt 0:00:27]} 84. Rf8+ {[%emt 0:00:25]} Ke7 {[%emt 0:00:34]} 85. Rf7+ {[%emt 0:00:15]} Ke8 {[%emt 0:00:23]} 86. Rb7 {[%emt 0:00:24]} Qa6+ {[%emt 0:01:19]} 87. Kc5 {[%emt 0:00:07]} Qa5+ {[%emt 0:00:42]} 88. Kd6 {[%emt 0:00:14]} Qd8+ {[%emt 0:00:26]} 89. Kc5 {[%emt 0:00:14]} Qa5+ {[%emt 0:00:19]} 90. Kd6 {[%emt 0:00:05]} 1/2-1/2

[Event "WGM Cvijet Mediterana 2019"]
[Site "Rijeka"]
[Date "2019.03.09"]
[Round "9.5"]
[White "Babiy, Olga"]
[Black "Medic, Mirjana"]
[Result "0-1"]
[ECO "C11"]
[WhiteElo "2305"]
[BlackElo "2207"]
[Annotator "NA"]
[PlyCount "130"]
[EventDate "2019.03.03"]
[EventType "tourn"]
[EventCountry "CRO"]
[SourceTitle "playchess.com"]
[Source "ChessBase"]
[SourceQuality "1"]
[TimeControl "5400+30"]

1. e4 {[%emt 0:01:30]} e6 {[%emt 0:00:30]} 2. d4 {[%emt 0:00:30]} d5 {[%emt 0:00:00]} 3. Nc3 {[%emt 0:00:00]} Nf6 {[%emt 0:00:00]} 4. e5 {[%emt 0:00:00]} Nfd7 {[%emt 0:00:00]} 5. f4 {[%emt 0:00:30]} c5 {[%emt 0:00:00]} 6. Nf3 {[%emt 0:00:00]} Nc6 {[%emt 0:00:30]} 7. Be3 {[%emt 0:00:00]} a6 {[%emt 0:00:30]} 8. Qd2 {[%emt 0:00:30]} b5 {[%emt 0:03:30]} 9. a3 {[%emt 0:00:00]} cxd4 {[%emt 0:16:30] C11: French: Classical System: 4 e5 and 4 Bg5 dxe4} (9... Rb8 10. dxc5 Bxc5 11. Bxc5 Nxc5 12. b4 Nd7 13. Bd3 Qb6 14. Ne2 f6 15. exf6 Nxf6 16. Ned4 Nxd4 17. Nxd4 {½-½ (31) Grischuk,A (2769)-Short,N (2652) Douglas 2018}) 10. Nxd4 {[%emt 0:00:00] LiveBook: 13 Games} Nxd4 {[%emt 0:00:30]} 11. Bxd4 {[%emt 0:00:30]} Bc5 {[%emt 0:00:00]} 12. Bxc5 {[%emt 0:07:30]} Nxc5 {[%emt 0:00:00]} 13. Qd4 {[%emt 0:07:30]} Qc7 {[%emt 0:03:30]} 14. Bd3 {[%emt 0:05:30]} Bd7 $146 {[%emt 0:02:30]} ({Predecessor:} 14... Nxd3+ 15. cxd3 Qa7 16. Qxa7 Rxa7 17. Ne2 Rc7 18. Kd2 Kd7 19. b4 Bb7 20. Nd4 f6 21. Rae1 Rf8 22. Rhf1 Bc8 23. f5 {1-0 (23) Clancey,J (1849)-Smail,J ICCF email 2014}) 15. f5 {[%emt 0:26:30]} Nxd3+ {[%emt 0:08:30]} 16. cxd3 {[%emt 0:00:00]} Qa7 {[%emt 0:02:30]} 17. Qf4 {[%emt 0:06:00]} exf5 {[%emt 0:05:30]} 18. Nxd5 {[%emt 0:10:30]} Be6 {[%emt 0:00:00]} 19. Ne3 $15 {[%emt 0:00:30]} Rd8 {[%emt 0:01:00]} 20. Rd1 {[%emt 0:00:30]} Rd4 {[%emt 0:04:30]} 21. Qf2 {[%emt 0:07:30]} Qd7 {[%emt 0:04:30]} 22. O-O {[%emt 0:00:30]} Rxd3 {[%emt 0:11:30]} 23. Qc2 {[%emt 0:05:42]} Rxd1 {[%emt 0:00:30]} 24. Rxd1 {[%emt 0:01:04]} Qa7 {[%emt 0:00:30]} 25. Qc6+ {[%emt 0:01:11]} Bd7 {[%emt 0:00:30]} 26. Qf3 {[%emt 0:00:19]} O-O {[%emt 0:01:30]} 27. Kh1 {[%emt 0:10:02]} Re8 {[%emt 0:04:30]} 28. Qf4 {[%emt 0:00:42]} Qc7 {[%emt 0:02:30]} 29. Nxf5 {[%emt 0:03:34]} Bxf5 {[%emt 0:00:30]} 30. Qxf5 {[%emt 0:00:01]} g6 {[%emt 0:00:30]} 31. Qf2 {[%emt 0:03:14]} Qxe5 {[%emt 0:00:30]} 32. Rf1 {[%emt 0:00:01]} Re7 {[%emt 0:04:30]} 33. h3 {[%emt 0:00:02]} Kg7 {[%emt 0:01:30]} 34. Qd2 {[%emt 0:00:25]} Re6 {[%emt 0:03:30]} 35. Rc1 {[%emt 0:02:05]} Rd6 {[%emt 0:00:30]} 36. Qb4 {[%emt 0:00:45]} Rd3 {[%emt 0:02:33]} 37. Rf1 {[%emt 0:00:47]} Qd5 {[%emt 0:00:54]} 38. Rf2 {[%emt 0:00:46]} Rxh3+ {[%emt 0:00:46]} 39. Kg1 {[%emt 0:00:02]} Rd3 {[%emt 0:01:18]} 40. Qh4 {[%emt 0:02:27]} Rd1+ {[%emt 0:01:31]} 41. Kh2 {[%emt 0:00:01]} Qd6+ {[%emt 0:00:45]} 42. Qf4 {[%emt 0:00:28]} Qxf4+ {[%emt 0:00:08]} 43. Rxf4 {[%emt 0:00:01]} Rd2 {[%emt 0:00:29]} 44. Rb4 {[%emt 0:00:02]} f5 {[%emt 0:00:22]} 45. a4 {[%emt 0:00:48]} Rd5 {[%emt 0:01:20]} 46. Kh3 {[%emt 0:01:43]} h5 {[%emt 0:01:22]} 47. a5 {[%emt 0:00:44]} Kf6 {[%emt 0:00:40]} 48. Rb3 {[%emt 0:00:01]} b4 {[%emt 0:04:40]} 49. Rxb4 {[%emt 0:00:33]} Rxa5 {[%emt 0:00:03]} 50. Rb6+ {[%emt 0:00:25]} Kg5 {[%emt 0:00:03]} 51. b4 {[%emt 0:00:11]} Ra3+ {[%emt 0:00:26]} 52. Kh2 {[%emt 0:00:07]} h4 {[%emt 0:00:52]} 53. Rc6 {[%emt 0:00:34]} Kh5 {[%emt 0:00:23]} 54. Rf6 {[%emt 0:01:28]} Rb3 {[%emt 0:00:18]} 55. Rb6 {[%emt 0:00:43]} g5 {[%emt 0:00:59]} 56. Rxa6 {[%emt 0:00:20]} Rxb4 {[%emt 0:00:06]} 57. Ra5 {[%emt 0:00:05]} Kg4 {[%emt 0:00:38]} 58. Ra3 {[%emt 0:00:18]} f4 {[%emt 0:00:37]} 59. Rc3 {[%emt 0:00:07]} Re4 {[%emt 0:00:30]} 60. Rc8 {[%emt 0:01:40]} Re2 {[%emt 0:00:18]} 61. Rc3 {[%emt 0:00:11]} Re3 {[%emt 0:00:10]} 62. Rc8 {[%emt 0:00:48]} h3 {[%emt 0:00:09]} 63. Rc2 {[%emt 0:00:29]} hxg2 {[%emt 0:00:18]} 64. Kxg2 {[%emt 0:00:03]} f3+ {[%emt 0:01:50]} 65. Kf2 {[%emt 0:00:10]} Kf4 {[%emt 0:02:28]} 0-1